Cogmind - Beta 12 @@@ ROGUE MODE // 2023.11.21 @ 10:02:45 Player: epb Result: Destroyed by G-34 Mercenary with Small Laser Performance ------------- Evolutions (1) 500 Regions Visited (4) 800 Robots Destroyed (52) 260 Value Destroyed (1329) 1329 Prototype IDs (2) 40 Alien Tech Used (0) 0 Bonus (200) 200 TOTAL SCORE: 3129 Bonus ------- Entered Garrisons 200 Cogmind --------- Core Integrity 0/400 Matter 284/300 Energy 280/280 System Corruption 2% Temperature Cool (38) Movement Walking (190) Ox1 Location -9/Garrison Parts ------- > --- POWER (1) -------- Heavy Ion Engine > --- PROPULSION (4) --- Aluminum Leg > --- UTILITY (2) ------ Medium Storage Unit Signal Interpreter > --- WEAPON (2) ------- Small Laser > --- INVENTORY (10) --- Improved Ion Engine Heavy Ion Engine Heat Sink Small Storage Unit Transport Network Coupler Peak State ------------ > --- POWER ------------ Heavy Ion Engine > --- PROPULSION ------- Aluminum Leg Aluminum Leg Aluminum Leg Aluminum Leg > --- UTILITY ---------- Medium Storage Unit Signal Interpreter > --- WEAPON ----------- Assault Rifle Grenade Launcher > --- INVENTORY -------- Heavy Ion Engine Aluminum Leg Aluminum Leg Heat Sink Small Storage Unit Transport Network Coupler EM Pulse Gun Small Laser [Rating: 12] Favorites ----------- Power Light Ion Engine Engine Light Ion Engine Power Core Light Nuclear Core Propulsion Aluminum Leg Leg Aluminum Leg Wheel Wheel Flight Unit Improved Flight Unit Utility Medium Storage Unit Storage Medium Storage Unit Processor Signal Interpreter Weapon Assault Rifle Energy Gun Small Laser Ballistic Gun Assault Rifle Launcher Grenade Launcher Build | -11 -10 -9 -9 -9 ------- Run | Jun Mat Mat Sto Gar Slots Evolved 2 | . . 2 . . Power . | . . . . . Propulsion 2 | . . 2 . . Utility . | . . . . . Weapon . | . . . . . Parts Attached 37 | 7 8 5 14 3 Power 8 | 1 3 2 2 . Engine 7 | 1 3 2 1 . Core 1 | . . . 1 . Reactor . | . . . . . Propulsion 12 | 2 . 2 7 1 Treads . | . . . . . Leg 8 | 2 . 2 3 1 Wheel 3 | . . . 3 . Hover . | . . . . . Flight 1 | . . . 1 . Utility 3 | 1 2 . . . Device . | . . . . . Storage 2 | 1 1 . . . Processor 1 | . 1 . . . Hackware . | . . . . . Protection . | . . . . . Artifact . | . . . . . Weapon 14 | 3 3 1 5 2 Energy Gun 8 | 2 1 . 3 2 Energy Cannon . | . . . . . Ballistic Gun 3 | 1 1 . 1 . Ballistic Cannon . | . . . . . Launcher 3 | . 1 1 1 . Special Weapon . | . . . . . Impact Weapon . | . . . . . Slashing Weapon . | . . . . . Piercing Weapon . | . . . . . Special Melee Weapon . | . . . . . Unidentified Prototypes 2 | . . 1 1 . Parts Lost 17 | . 1 2 8 6 Power 3 | . 1 1 1 . Propulsion 9 | . . 1 5 3 Utility . | . . . . . Weapon 5 | . . . 2 3 Highest Loss Streak 6 | . 1 1 5 6 To Critical Strikes . | . . . . . Average Slot Usage (%) 91 | . 95 94 79 81 Engine 9 | . 13 6 6 11 Leg 31 | . 28 43 24 1 Wheel 1 | . . . 3 30 Storage 12 | . 14 11 11 11 Processor 10 | . 10 11 11 11 Energy Gun 10 | . 14 3 13 11 Ballistic Gun 10 | . 14 11 4 5 Launcher 2 | . . 7 . . Naked Turns . | . . . . . Heaviest Build 23 | 11 18 23 23 22 Greatest Support 40 | 20 20 40 40 30 Greatest Overweight (x) 7 | 3 . 1 7 1 Average Overweight (x) . | . . . . . Largest Inventory Capacity 10 | 8 10 10 10 10 Average Capacity 9 | 7 9 10 10 10 Most Carried 10 | 2 10 9 7 6 Average Carried 6 | 1 7 7 5 5 Final Capacity 10 | 8 10 10 10 10 Final Carried 9 | 2 9 8 6 5 Class Distribution -------------------- 86% | Mutant 13% | Scavenger-Mutant Dominant Class ---------------- Mutant | -10/Materials Mutant | -9/Materials Scavenger-Mutant | -9/Storage Scavenger-Mutant | -9/Garrison Resources | -11 -10 -9 -9 -9 ----------- Run | Jun Mat Mat Sto Gar Matter Collected 945 | 233 182 254 276 . Remotely . | . . . . . Salvage Created 1449 | . 278 410 598 163 Parts 98 | . 18 34 36 10 Haulers Intercepted . | . . . . . Recyclers Shooed 1 | . . 1 . . Parts Field Recycled . | . . . . . Retrieved Matter . | . . . . . Parts Self-Destructed . | . . . . . Prevented . | . . . . . Kills | -11 -10 -9 -9 -9 ------- Run | Jun Mat Mat Sto Gar Combat Hostiles Destroyed 40 | . 11 17 9 3 Guns 25 | . 8 8 7 2 AOE 14 | . 3 9 1 1 Classes Destroyed 7 | . 2 4 1 . Worker 4 | . . 1 3 . Builder 2 | . . 1 1 . Recycler 2 | . . . 2 . Watcher 4 | . . 2 2 . Swarmer 13 | . 6 7 . . Grunt 18 | . 5 6 6 1 Sentry 9 | . . 4 3 2 Best Kill Streak 7 | . 3 5 7 3 Combat Bots Only 4 | . 3 4 3 3 Max Kills in Single Turn 3 | . 3 2 2 1 Gunslinging . | . . . . . Exploded 3 | . 3 2 1 1 Melee . | . . . . . Uniques/NPCs Destroyed . | . . . . . Combat | -11 -10 -9 -9 -9 -------- Run | Jun Mat Mat Sto Gar Damage Taken 1915 | . 309 471 699 436 Core 434 | . 34 98 178 124 Absorbed by Shields . | . . . . . Core Remaining (%) 93 | 100 86 . . . Volleys Fired 130 | . 20 33 61 16 Largest 2 | . 2 2 2 2 Hottest 80 | . 60 60 80 80 Shots Fired 209 | . 40 66 84 19 Gun 189 | . 39 50 81 19 Cannon . | . . . . . Launcher 20 | . 1 16 3 . Special . | . . . . . Kinetic 72 | . 20 33 16 3 Thermal 100 | . 19 17 51 13 Explosive 20 | . 1 16 3 . Electromagnetic 17 | . . . 14 3 Robot Hit Streak 16 | . 6 8 14 16 Robot Miss Streak 4 | . 4 4 2 3 Penetration Max . | . . . . . Secondary Targets 2 | . . 2 . . Max Gunslinging Chain 1 | . . 1 . . Shots Hit Robots 141 | . 25 39 63 14 Core Hits 91 | . 18 37 30 6 Critical Kills 1 | . . 1 . . Critical Parts Destroyed 1 | . . . 1 . Critical Strikes 4 | . . 1 2 1 Destroy 2 | . . 1 1 . Corrupt 2 | . . . 1 1 Melee Attacks . | . . . . . Impact . | . . . . . Slashing . | . . . . . Piercing . | . . . . . Sneak Attacks . | . . . . . Combat Hostiles . | . . . . . Follow-up Attacks . | . . . . . Damage Inflicted 2863 | . 433 1195 1035 200 Guns 1578 | . 292 366 743 177 Cannons . | . . . . . Explosions 1281 | . 141 825 292 23 Melee . | . . . . . Ramming 4 | . . 4 . . Kinetic 611 | . 160 249 166 36 Thermal 807 | . 132 117 422 136 Explosive 1258 | . 141 825 292 . Electromagnetic 183 | . . . 155 28 Impact . | . . . . . Slashing . | . . . . . Piercing . | . . . . . Highest Corruption 2 | . . 2 2 2 Average Corruption 1 | . . 1 2 2 Corruption Purged . | . . . . . Corruption Blocked . | . . . . . Effects 15 | . . 4 10 1 Message Errors 2 | . . 1 1 . Matter Fused 6 | . . 2 4 . Heat Flow Errors 2 | . . 1 1 . Energy Discharges 1 | . . . 1 . Parts Rejected 1 | . . . 1 . Data Loss (minor) 1 | . . . 1 . Weapon Failures 2 | . . . 1 1 Overload Shots . | . . . . . Overflow Damage 6 | . . 6 . . Projectiles . | . . . . . Explosions 6 | . . 6 . . Melee . | . . . . . Knockbacks . | . . . . . Impact . | . . . . . Kinetic . | . . . . . Secondary . | . . . . . Self-Inflicted Damage 66 | . . 51 . 15 Shots 4 | . . 3 . 1 Rammed . | . . . . . Targets Rammed 2 | . . 2 . . Kicked 2 | . . 2 . . Crushed . | . . . . . Highest Temperature 190 | . 24 155 190 52 Average Temperature 27 | . 11 48 31 20 Received Heat Transfer 738 | . 108 123 312 195 Siege Activations . | . . . . . Robots Corrupted 1 | . . . 1 . Combat Hostiles 1 | . . . 1 . Parts Fried 1 | . . . 1 . Impact Corruptions . | . . . . . Robots Melted . | . . . . . Combat Hostiles . | . . . . . Parts Melted 1 | . . 1 . . Heat Transferred 1825 | . 300 275 950 300 Parts Sabotaged . | . . . . . Parts Stolen . | . . . . . Parts Stripped . | . . . . . Power Chain Reactions 1 | . . . . 1 Missiles Intercepted . | . . . . . Alert | -11 -10 -9 -9 -9 ------- Run | Jun Mat Mat Sto Gar Peak Influence 341 | . 302 341 330 186 Initial 117 | . . 5 100 117 Average 139 | . 109 154 201 135 Maximum Alert Level 1 | . 1 1 1 . Low Security (%) 72 | 100 80 70 46 100 Level 1 27 | . 19 29 53 . Level 2 . | . . . . . Level 3 . | . . . . . Level 4 . | . . . . . Level 5 . | . . . . . High Security . | . . . . . Max Security . | . . . . . Squads Dispatched 2 | . 2 . . . Investigation 1 | . 1 . . . Extermination . | . . . . . Reinforcement 1 | . 1 . . . Assault . | . . . . . Garrison . | . . . . . Intercept . | . . . . . Searches Triggered . | . . . . . Construction Impeded . | . . . . . Haulers Reinforced . | . . . . . Active Scanning Responses . | . . . . . Cargo Convoy Interrupts . | . . . . . Stealth | -11 -10 -9 -9 -9 --------- Run | Jun Mat Mat Sto Gar Distress Signals 4 | . 2 1 1 . Communications Jammed . | . . . . . Distress Signals . | . . . . . Times Spotted 56 | . 17 19 15 5 Peak Tracking Total 6 | . 5 4 4 6 Tactical Retreats 2 | . . . 1 1 Traps | -11 -10 -9 -9 -9 ------- Run | Jun Mat Mat Sto Gar Traps Triggered 6 | . 4 2 . . Indirectly . | . . . . . Trap Hack Attempts . | . . . . . Triggered . | . . . . . Disarmed . | . . . . . Reprogrammed . | . . . . . Reused . | . . . . . Traps Extracted . | . . . . . Installed . | . . . . . Triggered . | . . . . . Machines | -11 -10 -9 -9 -9 ---------- Run | Jun Mat Mat Sto Gar Machines Disabled 4 | . 1 3 . . Max in Single Turn 1 | . 1 1 . . Machines Repaired . | . . . . . Machines Sabotaged . | . . . . . Overloaded Fab Kills . | . . . . . Hacking | -11 -10 -9 -9 -9 --------- Run | Jun Mat Mat Sto Gar Machines Accessed 7 | . 4 1 2 . Terminals 6 | . 4 1 1 . Fabricators . | . . . . . Repair Stations . | . . . . . Recycling Units . | . . . . . Scanalyzers . | . . . . . Garrison Access 1 | . . . 1 . Total Hacks 13 | . 9 1 3 . Successful 6 | . 3 1 2 . Failed 7 | . 6 . 1 . Catastrophic 1 | . 1 . . . Database Lockouts . | . . . . . Manual 6 | . 6 . . . Terminals 11 | . 9 1 1 . Fabricators . | . . . . . Repair Stations . | . . . . . Recycling Units . | . . . . . Scanalyzers . | . . . . . Garrison Access 2 | . . . 2 . Terminal Hacks 5 | . 3 1 1 . Record 1 | . . 1 . . Part Schematic 1 | . . . 1 . Terminal Index 1 | . 1 . . . Patrol Status 1 | . 1 . . . Patrol Navigation 1 | . 1 . . . Fabricator Hacks . | . . . . . Repair Station Hacks . | . . . . . Recycling Unit Hacks . | . . . . . Scanalyzer . | . . . . . Garrison Access Hacks 1 | . . . 1 . Unlock Access 1 | . . . 1 . Unauthorized Hacks . | . . . . . Terminals . | . . . . . Fabricators . | . . . . . Repair Stations . | . . . . . Recycling Units . | . . . . . Scanalyzers . | . . . . . Garrison Access . | . . . . . Data Cores Recovered . | . . . . . Used . | . . . . . Hacking Detections 5 | . 4 . 1 . Full Trace Events . | . . . . . Feedback Events . | . . . . . Feedback Blocked . | . . . . . Robot Schematics Acquired . | . . . . . Robots Built . | . . . . . Authchips . | . . . . . Time . | . . . . . Total Robot Build Rating . | . . . . . Part Schematics Acquired 1 | . . . 1 . Parts Built . | . . . . . Authchips . | . . . . . Time . | . . . . . Total Part Build Rating . | . . . . . Parts Repaired . | . . . . . Time . | . . . . . Parts Recycled . | . . . . . Recycled Matter . | . . . . . Retrieved Matter . | . . . . . Retrieved Components . | . . . . . Parts Scanalyzed . | . . . . . Part Schematics Acquired . | . . . . . Parts Damaged . | . . . . . Bothacking | -11 -10 -9 -9 -9 ------------ Run | Jun Mat Mat Sto Gar Used RIF Installer . | . . . . . Robots Hacked . | . . . . . Non-combat . | . . . . . Combat . | . . . . . Robot Hacks Applied . | . . . . . Relay Couplers Released . | . . . . . Fabnet Peak Effective % . | . . . . . Robots Rewired . | . . . . . Allies Hacked . | . . . . . Hacks Repelled . | . . . . . Allies | -11 -10 -9 -9 -9 -------- Run | Jun Mat Mat Sto Gar Total Allies . | . . . . . Largest Group . | . . . . . Highest-Rated Group . | . . . . . Highest-Rated Ally . | . . . . . Total Orders . | . . . . . Ally Attacks . | . . . . . Total Damage . | . . . . . Kills . | . . . . . Allies Corrupted . | . . . . . Allies Melted . | . . . . . Intel | -11 -10 -9 -9 -9 ------- Run | Jun Mat Mat Sto Gar Robot Analysis Total . | . . . . . Derelict Logs Recovered . | . . . . . Drone Launches . | . . . . . Drone Recoveries . | . . . . . Exploration | -11 -10 -9 -9 -9 ------------- Run | Jun Mat Mat Sto Gar Turns Passed 2438 | 96 973 810 475 84 Spaces Moved 1540 | 68 700 480 239 53 Core 42 | 33 . . 9 . Treads . | . . . . . Legs 1382 | 35 700 480 166 1 Wheels 112 | . . . 60 52 Hover . | . . . . . Flight 4 | . . . 4 . Fastest Speed 50 | 50 120 120 80 80 Average Speed 124 | 123 120 136 123 82 Slowest Speed 400 | 200 120 190 400 190 Overloaded Moves . | . . . . . Propulsion Burnouts . | . . . . . Robots Hopped . | . . . . . Cave-ins Triggered . | . . . . . Exploration Rate (%) 35 | 4 70 47 40 14 Regions Visited 4 Branch Regions 1 Pre-discovered Areas . | . . . . . Known Exits Taken 3 | . 1 1 1 . Unknown Exits Taken 1 | 1 . . . . Scrap Searched . | . . . . . Spaces Dug . | . . . . . Terrain Destroyed 117 | . 4 87 22 4 Melee . | . . . . . Projectile . | . . . . . AOE 117 | . 4 87 22 4 Terrain Rammed . | . . . . . Walls Destroyed . | . . . . . Machines Disabled . | . . . . . Actions | -11 -10 -9 -9 -9 --------- Run | Jun Mat Mat Sto Gar Total 1837 | 76 791 568 330 72 Wait 100 | . 53 37 10 . Move 1536 | 67 699 479 238 53 Hop . | . . . . . Pick Up 17 | 2 6 7 2 . Fast Attach 21 | 6 4 1 8 2 Attach 10 | . 1 3 5 1 Detach 4 | . 2 . 2 . Swap 6 | 1 3 1 1 . Drop 10 | . 2 5 3 . Fire 130 | . 20 33 61 16 Melee . | . . . . . Ram . | . . . . . Kick 2 | . . 2 . . Crush . | . . . . . Escape Stasis . | . . . . . Rewire 1 | . 1 . . . Trap . | . . . . . Miscellaneous . | . . . . . Route ------- -11/Junkyard -10/Materials (discovered 3 exits: *Mat x2 / *Min) -9/Materials (discovered 2 exits: *Min / *Sto) -9/Storage -9/Garrison History --------- Turn | Location | Event 18 | -11/Junkyard | Discovered new exit (range 16) 97 | -11/Junkyard | Entered Materials 312 | -10/Materials | Build established: Mutant 498 | -10/Materials | Discovered new exit (range 15) 953 | -10/Materials | Discovered new exit (range 15) 1009 | -10/Materials | Discovered new exit (range 10) 1029 | -10/Materials | Identified exit to Mines 1065 | -10/Materials | Identified exit to Materials 1070 | -10/Materials | Entered another Materials area 1070 | -9/Materials | Evolved 2 slots: Propulsion x2 1351 | -9/Materials | Discovered new exit (range 10) 1376 | -9/Materials | Identified exit to Mines 1823 | -9/Materials | Discovered new exit (range 12) 1862 | -9/Materials | Identified exit to Storage 1880 | -9/Materials | Entered Storage 2222 | -9/Storage | Core integrity fell below 50% 2240 | -9/Storage | Lost 5 parts (1p3n1w) 2354 | -9/Storage | Identified exit to Garrison 2355 | -9/Storage | Entered Garrison 2388 | -9/Garrison | Triggered checkpoint 2414 | -9/Garrison | Core integrity fell below 20% 2439 | -9/Garrison | Destroyed by G-34 Mercenary with Small Laser Last Messages --------------- 02354_ Connecting with Garrison Access... >>Unlock Access door unlocked. 02354_ EXIT=UNLOCKED: GARRISON LOCATION=GARRISON GOAL=ESCAPE 02397_ Hvy. Assault Rifle destroyed. Garrison Door activated. 02410_ System corrupted: Sml. Laser failed to cycle. 02414_ Y-45 Defender destroyed. 02415_ Critical hit (Burn: +37). 02418_ Wheel destroyed. 02420_ Y-45 Defender destroyed. 02422_ Sml. Laser destroyed. 02423_ Chain reaction triggered in Ion Engine. 02423_ G-34 Mercenary destroyed. 02427_ Acquired Aluminum Leg. 02430_ Wheel destroyed. 02432_ Acquired Sml. Laser. 02436_ EM Pulse Gun destroyed. Map ----- +----------------------------------------------------+ | ?????????????????????????????????????????????????? | | ?????????????????????????????????????????????????? | | ?????????????????????????????????????????????????? | | ?????????????????????????????????????????????????? | | ?????????????????????????????????????????????????? | | ?????????????????????????????????????????????????? | | ?????????????????????????????????????????????????? | | ?????????????????????????????????????????????????? | | ?????????????????????????????????????????????????? | | ?????????????????????????????????????????????????? | | ?????????????????? ????????????????????????????? | | ?????????????????# ????????????????????????????? | | ?????????????????# ????????????????????????????? | | ???????????#"???## ????????????????????????????? | | ????????? ??? ????????????????????????????? | | ?????????? ?? ????????????????????????????? | | ?????????? ?? ????????????????????????????? | | ???????????# ?# #???????????????????????????? | | ??????????## ## ##??????????????????????????? | | ??????????? ???????????????????????????? | | ????????????? ???????????????????????????? | | ?????????????? ???????????????????????????? | | ???????????????? ???????????????????????????? | | ?????????????????# #??####?????????????????????? | | ???????????#^ ^## ####;;####??????????????????? | | ??????# [g%*@ #??????????????????? | | ??????# [%g!!% #??????????????????? | | ??????# =###;;;# #??????????????????? | | ??????# ## ## ##?# ### #??????????????????? | | ???????????# ??# ???# ??# #??????????????????? | | ???????????##????# ??? ??# #??????????????????? | | ?????????????????# ??# #??# #??????????????????? | | ?????????????????# ??# ???# #??????????????????? | | ?????????????????# ??# ???# #??????????????????? | | ?????????????????# ???# ???# #??????????????????? | | ?????????????????# ######## ##############?????? | | ?????????????????# #?????? | | ?????????????????# #?????? | | ?????????????????########### ########### #?????? | | ???????????????????????????# #?????????# #?????? | | ???????????????????????????# #?????????# #?????? | | ???????????????????????????" "?????????# #?????? | | ???????????????????????????" "?????????# #?????? | | ???????????????????????????" "?????????# ###???? | | ???????????????????????????# #?????????# #???? | | ???????????????????????????# #?????????# #???? | | ???????????????????????????# ??????????# #???? | | ???????????????????????????# ??????????######???? | | ???????????????????????????# ???????????????????? | | ???????????????????????????# ???????????????????? | +----------------------------------------------------+ Best States ------------- Heat Dissipation 28 Energy Generation 14 Energy Capacity 280 Matter Stores 300 Matter Capacity 300 Sight Range 16 Terrain Scan Density 10 Evasion (%) 55 Item Schematics ----------------- Titanium Leg | -9/Storage | Hacked Robot Schematics ------------------ None Fabricated ------------ Nothing Alien Tech Used ----------------- None Achievements -------------- None Challenges ------------ None Game ------ Seed ComponentImprinterMegatreads Manual? 0 Play Time 00:21:13 Cumulative 16.8 hours Start 2023.11.20 @ 16:52:12 End 2023.11.21 @ 10:02:45 Sessions 3 Manual Loads 0 Difficulty Rogue Special Mode None Game No. 44 Rogue 44 Adventurer 0 Explorer 0 Win Type - Total 0 Types 0/0/0/0/0/0/0/0/0 Lore% 11 Gallery% 23 Achievement% 17 Wizard Run 0 Options --------- ASCII 0 Keyboard 0 Movement Vi Keybinds 0 Fullscreen 2 Font 14/TerminusBold Map View 72x54 Tactical HUD 1 Map Filters NONE Filters NONE Steam X RUN: 404ec5f3-59da-4afd-83de-15480efe563a